[Event "Titled Tuesday Blitz February 14 Late 2023"]
[White "Vovk, Orest"]
[Black "Gasparyan, David"]
[WhiteFideId "14113490"]
[BlackFideId "13311980"]
[WhiteElo "2315"]
[BlackElo "2142"]
[Result "1-0"]
[Round "07"]
[TimeControl "180+2"]
[Date "2023.02.14"]
[WhiteClock "0:00:10"]
[BlackClock "0:00:08"]

1. h4 {[%clk 0:02:53]}  d5 {[%clk 0:02:51]} 2. h5 {[%clk 0:02:53]}  h6 {[%clk 0:02:50]} 3. e4 {[%clk 0:02:52]}  dxe4 {[%clk 0:02:49]} 4. Nc3 {[%clk 0:02:53]}  Nf6 {[%clk 0:02:49]} 5. Qe2 {[%clk 0:02:53]}  c6 {[%clk 0:02:47]} 6. Nxe4 {[%clk 0:02:52]}  Bf5 {[%clk 0:02:44]} 7. d3 {[%clk 0:02:51]}  e6 {[%clk 0:02:42]} 8. g3 {[%clk 0:02:47]}  Nbd7 {[%clk 0:02:36]} 9. Bg2 {[%clk 0:02:46]}  Qb6 {[%clk 0:02:33]} 10. Nf3 {[%clk 0:02:45]}  Bg4 {[%clk 0:02:31]} 11. c3 {[%clk 0:02:32]}  Bxh5 {[%clk 0:02:27]} 12. Nxf6+ {[%clk 0:02:25]}  Nxf6 {[%clk 0:02:28]} 13. Qe5 {[%clk 0:02:23]}  Bg6 {[%clk 0:02:23]} 14. O-O {[%clk 0:02:14]}  Be7 {[%clk 0:02:12]} 15. Be3 {[%clk 0:02:11]}  Qd8 {[%clk 0:02:13]} 16. Rad1 {[%clk 0:01:58]}  Ng4 {[%clk 0:02:09]} 17. Qf4 {[%clk 0:01:53]}  h5 {[%clk 0:02:04]} 18. Bd4 {[%clk 0:01:36]}  Bd6 {[%clk 0:01:53]} 19. Qd2 {[%clk 0:01:25]}  c5 {[%clk 0:01:45]} 20. Be3 {[%clk 0:01:17]}  Qc7 {[%clk 0:01:35]} 21. Bf4 {[%clk 0:01:00]}  Bxf4 {[%clk 0:01:31]} 22. Qxf4 {[%clk 0:01:00]}  Qxf4 {[%clk 0:01:31]} 23. gxf4 {[%clk 0:01:01]}  O-O-O {[%clk 0:01:26]} 24. d4 {[%clk 0:01:00]}  cxd4 {[%clk 0:01:15]} 25. cxd4 {[%clk 0:01:00]}  h4 {[%clk 0:01:08]} 26. Ne5 {[%clk 0:00:58]}  Bf5 {[%clk 0:00:57]} 27. Nxf7 {[%clk 0:00:50]}  h3 {[%clk 0:00:55]} 28. Bf3 {[%clk 0:00:46]}  h2+ {[%clk 0:00:42]} 29. Kg2 {[%clk 0:00:37]}  Rh6 {[%clk 0:00:36]} 30. Nxh6 {[%clk 0:00:33]}  gxh6 {[%clk 0:00:36]} 31. Bxg4 {[%clk 0:00:34]}  Bxg4 {[%clk 0:00:36]} 32. f3 {[%clk 0:00:34]}  Bf5 {[%clk 0:00:31]} 33. Kxh2 {[%clk 0:00:34]}  h5 {[%clk 0:00:22]} 34. Rfe1 {[%clk 0:00:30]}  h4 {[%clk 0:00:20]} 35. Re5 {[%clk 0:00:29]}  h3 {[%clk 0:00:19]} 36. d5 {[%clk 0:00:28]}  Rg8 {[%clk 0:00:17]} 37. Rg1 {[%clk 0:00:26]}  Rd8 {[%clk 0:00:12]} 38. dxe6 {[%clk 0:00:20]}  Rd2+ {[%clk 0:00:12]} 39. Kg3 {[%clk 0:00:20]}  h2 {[%clk 0:00:12]} 40. Rh1 {[%clk 0:00:20]}  Bd3 {[%clk 0:00:11]} 41. e7 {[%clk 0:00:17]}  Bg6 {[%clk 0:00:11]} 42. e8=Q+ {[%clk 0:00:15]}  Bxe8 {[%clk 0:00:11]} 43. Rxe8+ {[%clk 0:00:16]}  Kd7 {[%clk 0:00:12]} 44. Re5 {[%clk 0:00:16]}  Rxb2 {[%clk 0:00:12]} 45. Rxh2 {[%clk 0:00:17]}  Rb4 {[%clk 0:00:13]} 46. Rh7+ {[%clk 0:00:16]}  Kc6 {[%clk 0:00:13]} 47. Rg5 {[%clk 0:00:16]}  Rb2 {[%clk 0:00:11]} 48. Rg6+ {[%clk 0:00:15]}  Kc5 {[%clk 0:00:11]} 49. Rh5+ {[%clk 0:00:15]}  Kd4 {[%clk 0:00:11]} 50. a4 {[%clk 0:00:15]}  b6 {[%clk 0:00:10]} 51. Rg7 {[%clk 0:00:15]}  a5 {[%clk 0:00:09]} 52. Rb5 {[%clk 0:00:14]}  Ra2 {[%clk 0:00:08]} 53. Rxb6 {[%clk 0:00:14]}  Rxa4 {[%clk 0:00:09]} 54. Re7 {[%clk 0:00:14]}  Kc5 {[%clk 0:00:09]} 55. Rb8 {[%clk 0:00:12]}  Ra1 {[%clk 0:00:08]} 56. f5 {[%clk 0:00:12]}  a4 {[%clk 0:00:07]} 57. f6 {[%clk 0:00:11]}  Kd6 {[%clk 0:00:08]} 58. Ra7 {[%clk 0:00:11]}  a3 {[%clk 0:00:08]} 59. f7 {[%clk 0:00:10]}  Rg1+ {[%clk 0:00:07]} 60. Kf4 {[%clk 0:00:10]}  a2 {[%clk 0:00:06]} 61. f8=Q+ {[%clk 0:00:10]}  Kd5 {[%clk 0:00:07]} 62. Rxa2 {[%clk 0:00:10]}  Rg6 {[%clk 0:00:06]} 63. Qf7+ {[%clk 0:00:09]}  Re6 {[%clk 0:00:05]} 64. Qxe6+ {[%clk 0:00:09]}  Kxe6 {[%clk 0:00:06]} 65. Ra5 {[%clk 0:00:09]}  Kd7 {[%clk 0:00:06]} 66. Rb6 {[%clk 0:00:09]}  Kc7 {[%clk 0:00:07]} 67. Rg6 {[%clk 0:00:10]}  Kb7 {[%clk 0:00:08]} 68. Rh5 {[%clk 0:00:09]}  Ka8 {[%clk 0:00:08]} 69. Rh7 {[%clk 0:00:10]} 1-0


[Site "https://www.chess.com"]

[Event "Titled Tuesday Blitz February 14 Late 2023"]
[White "Rangel, Daniel"]
[Black "Baghdasaryan, Vahe"]
[WhiteFideId "2124475"]
[BlackFideId "13303139"]
[WhiteElo "2207"]
[BlackElo "2257"]
[Result "1-0"]
[Round "07"]
[TimeControl "180+2"]
[Date "2023.02.14"]
[WhiteClock "0:00:03"]
[BlackClock "0:00:02"]

1. c4 {[%clk 0:03:00]}  c6 {[%clk 0:02:53]} 2. g3 {[%clk 0:02:59]}  d5 {[%clk 0:02:53]} 3. Nf3 {[%clk 0:02:59]}  Nf6 {[%clk 0:02:53]} 4. b3 {[%clk 0:02:58]}  Bf5 {[%clk 0:02:50]} 5. Bg2 {[%clk 0:02:57]}  e6 {[%clk 0:02:50]} 6. O-O {[%clk 0:02:56]}  h6 {[%clk 0:02:50]} 7. Bb2 {[%clk 0:02:56]}  Nbd7 {[%clk 0:02:50]} 8. d3 {[%clk 0:02:57]}  Be7 {[%clk 0:02:50]} 9. Nbd2 {[%clk 0:02:57]}  O-O {[%clk 0:02:50]} 10. Qc2 {[%clk 0:02:45]}  a5 {[%clk 0:02:43]} 11. Rad1 {[%clk 0:02:41]}  a4 {[%clk 0:02:41]} 12. Bc3 {[%clk 0:02:23]}  axb3 {[%clk 0:02:39]} 13. axb3 {[%clk 0:02:22]}  Bh7 {[%clk 0:02:34]} 14. Ra1 {[%clk 0:02:17]}  Qb6 {[%clk 0:02:31]} 15. Qb2 {[%clk 0:02:00]}  c5 {[%clk 0:02:28]} 16. d4 {[%clk 0:01:52]}  Be4 {[%clk 0:01:57]} 17. Ne5 {[%clk 0:01:14]}  Bxg2 {[%clk 0:01:55]} 18. Nxd7 {[%clk 0:01:14]}  Nxd7 {[%clk 0:01:53]} 19. Kxg2 {[%clk 0:01:12]}  Rxa1 {[%clk 0:01:36]} 20. Rxa1 {[%clk 0:01:10]}  e5 {[%clk 0:01:34]} 21. dxc5 {[%clk 0:00:59]}  Qxc5 {[%clk 0:01:31]} 22. Ra5 {[%clk 0:00:48]}  Qb6 {[%clk 0:01:01]} 23. Rxd5 {[%clk 0:00:47]}  Qc6 {[%clk 0:00:47]} 24. e4 {[%clk 0:00:38]}  f6 {[%clk 0:00:45]} 25. b4 {[%clk 0:00:33]}  Nb6 {[%clk 0:00:44]} 26. Rd3 {[%clk 0:00:17]}  Nxc4 {[%clk 0:00:44]} 27. Qb3 {[%clk 0:00:17]}  b5 {[%clk 0:00:42]} 28. Rd5 {[%clk 0:00:15]}  Kh7 {[%clk 0:00:30]} 29. Nxc4 {[%clk 0:00:15]}  bxc4 {[%clk 0:00:30]} 30. Qd1 {[%clk 0:00:14]}  f5 {[%clk 0:00:26]} 31. Qe2 {[%clk 0:00:11]}  f4 {[%clk 0:00:23]} 32. f3 {[%clk 0:00:10]}  fxg3 {[%clk 0:00:20]} 33. hxg3 {[%clk 0:00:10]}  Bf6 {[%clk 0:00:21]} 34. b5 {[%clk 0:00:09]}  Qc7 {[%clk 0:00:20]} 35. Qd1 {[%clk 0:00:09]}  Ra8 {[%clk 0:00:18]} 36. Rd7 {[%clk 0:00:06]}  Ra2+ {[%clk 0:00:18]} 37. Kh3 {[%clk 0:00:06]}  Qc8 {[%clk 0:00:17]} 38. b6 {[%clk 0:00:05]}  Ra3 {[%clk 0:00:11]} 39. Qd6 {[%clk 0:00:05]}  Rb3 {[%clk 0:00:11]} 40. Ba5 {[%clk 0:00:02]}  c3 {[%clk 0:00:10]} 41. Qe6 {[%clk 0:00:02]}  Qa6 {[%clk 0:00:04]} 42. Qxf6 {[%clk 0:00:02]}  Qf1+ {[%clk 0:00:02]} 43. Kg4 {[%clk 0:00:03]} 1-0


[Site "https://www.chess.com"]

[Event "Titled Tuesday Blitz February 14 Late 2023"]
[White "Moral Garcia, Serafin"]
[Black "CheckBits"]
[WhiteFideId "2201925"]
[WhiteElo "2238"]
[BlackElo "2468"]
[Result "1/2-1/2"]
[Round "07"]
[TimeControl "180+2"]
[Date "2023.02.14"]
[WhiteClock "0:00:17"]
[BlackClock "0:00:07"]

1. e4 {[%clk 0:03:00]}  e6 {[%clk 0:02:56]} 2. d4 {[%clk 0:02:59]}  d5 {[%clk 0:02:56]} 3. Nd2 {[%clk 0:02:59]}  Nf6 {[%clk 0:02:56]} 4. e5 {[%clk 0:02:59]}  Nfd7 {[%clk 0:02:56]} 5. c3 {[%clk 0:03:00]}  c5 {[%clk 0:02:56]} 6. Bd3 {[%clk 0:02:59]}  Nc6 {[%clk 0:02:56]} 7. Ne2 {[%clk 0:02:58]}  a6 {[%clk 0:02:52]} 8. O-O {[%clk 0:02:56]}  b5 {[%clk 0:02:52]} 9. f4 {[%clk 0:02:54]}  g6 {[%clk 0:02:49]} 10. Nf3 {[%clk 0:02:50]}  Bb7 {[%clk 0:02:38]} 11. h3 {[%clk 0:02:44]}  cxd4 {[%clk 0:02:21]} 12. cxd4 {[%clk 0:02:43]}  Qb6 {[%clk 0:02:15]} 13. Kh1 {[%clk 0:02:41]}  Be7 {[%clk 0:02:11]} 14. Be3 {[%clk 0:02:32]}  O-O-O {[%clk 0:01:59]} 15. Bf2 {[%clk 0:02:26]}  Kb8 {[%clk 0:01:58]} 16. Rc1 {[%clk 0:02:14]}  Nb4 {[%clk 0:01:53]} 17. Bb1 {[%clk 0:02:02]}  Rc8 {[%clk 0:01:52]} 18. Qd2 {[%clk 0:02:01]}  Rxc1 {[%clk 0:01:51]} 19. Rxc1 {[%clk 0:01:59]}  Rc8 {[%clk 0:01:51]} 20. Bh4 {[%clk 0:01:53]}  Bxh4 {[%clk 0:01:40]} 21. Nxh4 {[%clk 0:01:50]}  Rxc1+ {[%clk 0:01:32]} 22. Nxc1 {[%clk 0:01:49]}  a5 {[%clk 0:01:25]} 23. Nf3 {[%clk 0:01:46]}  Nc6 {[%clk 0:01:19]} 24. a3 {[%clk 0:01:24]}  b4 {[%clk 0:01:17]} 25. axb4 {[%clk 0:01:24]}  axb4 {[%clk 0:01:10]} 26. g4 {[%clk 0:01:05]}  Ba6 {[%clk 0:01:05]} 27. Kg2 {[%clk 0:01:03]}  Kb7 {[%clk 0:01:03]} 28. f5 {[%clk 0:01:01]}  Qb5 {[%clk 0:00:40]} 29. Bd3 {[%clk 0:00:59]}  Qa4 {[%clk 0:00:39]} 30. f6 {[%clk 0:00:49]}  Nb6 {[%clk 0:00:31]} 31. b3 {[%clk 0:00:43]}  Qa1 {[%clk 0:00:30]} 32. Bxa6+ {[%clk 0:00:41]}  Kxa6 {[%clk 0:00:30]} 33. Ng5 {[%clk 0:00:35]}  Nxd4 {[%clk 0:00:18]} 34. Nxf7 {[%clk 0:00:34]}  Qc3 {[%clk 0:00:11]} 35. Qxc3 {[%clk 0:00:32]}  bxc3 {[%clk 0:00:11]} 36. Ng5 {[%clk 0:00:29]}  Nd7 {[%clk 0:00:10]} 37. Nxh7 {[%clk 0:00:27]}  Nxe5 {[%clk 0:00:10]} 38. Nf8 {[%clk 0:00:25]}  Nf7 {[%clk 0:00:09]} 39. Nxg6 {[%clk 0:00:24]}  e5 {[%clk 0:00:09]} 40. h4 {[%clk 0:00:23]}  Ne6 {[%clk 0:00:09]} 41. g5 {[%clk 0:00:21]}  d4 {[%clk 0:00:07]} 42. Ne7 {[%clk 0:00:17]}  Nexg5 {[%clk 0:00:06]} 43. hxg5 {[%clk 0:00:17]}  Nxg5 {[%clk 0:00:07]} 44. Nc6 {[%clk 0:00:18]}  Nf7 {[%clk 0:00:06]} 45. Kf3 {[%clk 0:00:17]}  Kb5 {[%clk 0:00:07]} 46. Nxe5 {[%clk 0:00:17]}  Nxe5+ {[%clk 0:00:06]} 47. Ke4 {[%clk 0:00:17]}  Nf7 {[%clk 0:00:06]} 48. Kxd4 {[%clk 0:00:16]}  Kb4 {[%clk 0:00:07]} 49. Kd5 {[%clk 0:00:16]}  Ka3 {[%clk 0:00:07]} 50. Ke6 {[%clk 0:00:16]}  Nh6 {[%clk 0:00:06]} 51. f7 {[%clk 0:00:16]}  Nxf7 {[%clk 0:00:06]} 52. Kxf7 {[%clk 0:00:16]}  Kb2 {[%clk 0:00:07]} 53. Ne2 {[%clk 0:00:16]}  Kxb3 {[%clk 0:00:07]} 54. Nxc3 {[%clk 0:00:17]} 1/2-1/2


[Site "https://www.chess.com"]

[Event "Titled Tuesday Blitz February 14 Late 2023"]
[White "Aldokhin, Ivan"]
[Black "Bouget, Alexandre"]
[WhiteFideId "24115720"]
[BlackFideId "681318"]
[WhiteElo "2413"]
[BlackElo "2267"]
[Result "1-0"]
[Round "07"]
[TimeControl "180+2"]
[Date "2023.02.14"]
[WhiteClock "0:01:39"]
[BlackClock "0:01:31"]

1. e4 {[%clk 0:03:00]}  e6 {[%clk 0:03:00]} 2. d4 {[%clk 0:03:00]}  d5 {[%clk 0:03:00]} 3. Nc3 {[%clk 0:03:00]}  Bb4 {[%clk 0:02:58]} 4. exd5 {[%clk 0:02:58]}  exd5 {[%clk 0:02:57]} 5. Bd3 {[%clk 0:02:58]}  Nf6 {[%clk 0:02:56]} 6. Nf3 {[%clk 0:02:54]}  O-O {[%clk 0:02:52]} 7. O-O {[%clk 0:02:54]}  Bg4 {[%clk 0:02:50]} 8. h3 {[%clk 0:02:52]}  Bh5 {[%clk 0:02:50]} 9. g4 {[%clk 0:02:52]}  Bg6 {[%clk 0:02:50]} 10. Bg5 {[%clk 0:02:51]}  c6 {[%clk 0:02:45]} 11. Ne5 {[%clk 0:02:47]}  Bxd3 {[%clk 0:02:26]} 12. Qxd3 {[%clk 0:02:46]}  Be7 {[%clk 0:02:27]} 13. Rae1 {[%clk 0:02:41]}  h6 {[%clk 0:02:19]} 14. Bh4 {[%clk 0:02:29]}  Re8 {[%clk 0:02:15]} 15. f4 {[%clk 0:02:17]}  Nh7 {[%clk 0:02:08]} 16. Nxf7 {[%clk 0:02:04]}  Bxh4 {[%clk 0:01:55]} 17. Nxd8 {[%clk 0:02:00]}  Bxe1 {[%clk 0:01:53]} 18. Nxb7 {[%clk 0:01:55]}  Nd7 {[%clk 0:01:49]} 19. Nd6 {[%clk 0:01:52]}  Re6 {[%clk 0:01:46]} 20. Qf5 {[%clk 0:01:42]}  Nhf8 {[%clk 0:01:36]} 21. Qf7+ {[%clk 0:01:38]}  Kh7 {[%clk 0:01:31]} 22. Nf5 {[%clk 0:01:39]} 1-0


[Site "https://www.chess.com"]

[Event "Titled Tuesday Blitz February 14 Late 2023"]
[White "Kleiman, Jake"]
[Black "Fernandez, Maria Florencia"]
[WhiteFideId "2020041"]
[BlackFideId "116459"]
[WhiteElo "2399"]
[BlackElo "2129"]
[Result "1-0"]
[Round "07"]
[TimeControl "180+2"]
[Date "2023.02.14"]
[WhiteClock "0:00:11"]
[BlackClock "0:00:03"]

1. h4 {[%clk 0:03:00]}  d5 {[%clk 0:02:57]} 2. d4 {[%clk 0:02:59]}  c5 {[%clk 0:02:55]} 3. c3 {[%clk 0:02:59]}  Nc6 {[%clk 0:02:55]} 4. Bf4 {[%clk 0:02:59]}  Nf6 {[%clk 0:02:52]} 5. e3 {[%clk 0:02:59]}  Bf5 {[%clk 0:02:45]} 6. Nd2 {[%clk 0:02:58]}  e6 {[%clk 0:02:45]} 7. Qb3 {[%clk 0:02:52]}  Qb6 {[%clk 0:02:24]} 8. h5 {[%clk 0:02:52]}  h6 {[%clk 0:02:19]} 9. Ngf3 {[%clk 0:02:49]}  c4 {[%clk 0:02:10]} 10. Qxb6 {[%clk 0:02:49]}  axb6 {[%clk 0:02:11]} 11. a3 {[%clk 0:02:50]}  Bg4 {[%clk 0:01:59]} 12. Ne5 {[%clk 0:02:49]}  Bxh5 {[%clk 0:01:25]} 13. e4 {[%clk 0:02:49]}  g5 {[%clk 0:01:15]} 14. Bg3 {[%clk 0:02:47]}  Bg6 {[%clk 0:00:51]} 15. Nxg6 {[%clk 0:02:44]}  fxg6 {[%clk 0:00:52]} 16. Be2 {[%clk 0:02:38]}  h5 {[%clk 0:00:46]} 17. O-O-O {[%clk 0:02:21]}  Bh6 {[%clk 0:00:42]} 18. Kc2 {[%clk 0:02:16]}  Kf7 {[%clk 0:00:39]} 19. Rde1 {[%clk 0:02:08]}  g4 {[%clk 0:00:24]} 20. e5 {[%clk 0:01:32]}  Bxd2 {[%clk 0:00:21]} 21. Kxd2 {[%clk 0:01:27]}  Ne4+ {[%clk 0:00:21]} 22. Ke3 {[%clk 0:01:28]}  Nxg3 {[%clk 0:00:19]} 23. fxg3 {[%clk 0:01:28]}  Kg7 {[%clk 0:00:18]} 24. Bd1 {[%clk 0:01:24]}  Rhf8 {[%clk 0:00:17]} 25. Ref1 {[%clk 0:01:14]}  Ne7 {[%clk 0:00:04]} 26. Bc2 {[%clk 0:01:10]}  Rxf1 {[%clk 0:00:02]} 27. Rxf1 {[%clk 0:01:10]}  Nf5+ {[%clk 0:00:03]} 28. Bxf5 {[%clk 0:01:02]}  gxf5 {[%clk 0:00:03]} 29. Kf4 {[%clk 0:01:00]}  Kg6 {[%clk 0:00:03]} 30. Rh1 {[%clk 0:01:01]}  Ra5 {[%clk 0:00:02]} 31. Re1 {[%clk 0:01:00]}  Rb5 {[%clk 0:00:03]} 32. Re2 {[%clk 0:01:01]}  Ra5 {[%clk 0:00:03]} 33. Rd2 {[%clk 0:01:01]}  Rb5 {[%clk 0:00:04]} 34. Rf2 {[%clk 0:01:01]}  Ra5 {[%clk 0:00:04]} 35. Ke3 {[%clk 0:00:57]}  Ra8 {[%clk 0:00:04]} 36. Rf1 {[%clk 0:00:56]}  Rh8 {[%clk 0:00:05]} 37. Rh1 {[%clk 0:00:54]}  Kg5 {[%clk 0:00:05]} 38. Rh2 {[%clk 0:00:49]}  h4 {[%clk 0:00:05]} 39. Rh1 {[%clk 0:00:44]}  Rh5 {[%clk 0:00:03]} 40. gxh4+ {[%clk 0:00:19]}  Rxh4 {[%clk 0:00:03]} 41. Ra1 {[%clk 0:00:18]}  f4+ {[%clk 0:00:02]} 42. Kf2 {[%clk 0:00:18]}  Rh2 {[%clk 0:00:01]} 43. Kg1 {[%clk 0:00:17]}  Rh4 {[%clk 0:00:02]} 44. a4 {[%clk 0:00:16]}  Kf5 {[%clk 0:00:02]} 45. a5 {[%clk 0:00:14]}  bxa5 {[%clk 0:00:03]} 46. Rxa5 {[%clk 0:00:14]}  Ke4 {[%clk 0:00:03]} 47. Ra8 {[%clk 0:00:08]}  Rh7 {[%clk 0:00:04]} 48. Re8 {[%clk 0:00:07]}  Rh6 {[%clk 0:00:03]} 49. Re7 {[%clk 0:00:07]}  f3 {[%clk 0:00:03]} 50. Rf7 {[%clk 0:00:04]}  fxg2 {[%clk 0:00:02]} 51. Kxg2 {[%clk 0:00:04]}  Kd3 {[%clk 0:00:02]} 52. Rf6 {[%clk 0:00:03]}  Rh7 {[%clk 0:00:02]} 53. Rxe6 {[%clk 0:00:04]}  Kc2 {[%clk 0:00:02]} 54. Rb6 {[%clk 0:00:05]}  Rg7 {[%clk 0:00:01]} 55. Kg3 {[%clk 0:00:05]}  Kd3 {[%clk 0:00:02]} 56. e6 {[%clk 0:00:05]}  Ke4 {[%clk 0:00:02]} 57. Rd6 {[%clk 0:00:06]}  Kf5 {[%clk 0:00:02]} 58. Rxd5+ {[%clk 0:00:06]}  Kxe6 {[%clk 0:00:03]} 59. Rc5 {[%clk 0:00:07]}  Kd6 {[%clk 0:00:02]} 60. Rxc4 {[%clk 0:00:07]}  b5 {[%clk 0:00:02]} 61. Rb4 {[%clk 0:00:08]}  Kc6 {[%clk 0:00:02]} 62. Rb3 {[%clk 0:00:08]}  Rg8 {[%clk 0:00:02]} 63. Ra3 {[%clk 0:00:09]}  Rg7 {[%clk 0:00:03]} 64. Ra6+ {[%clk 0:00:09]}  Kd5 {[%clk 0:00:04]} 65. Rb6 {[%clk 0:00:09]}  Kc4 {[%clk 0:00:04]} 66. Rb8 {[%clk 0:00:09]}  Rg6 {[%clk 0:00:03]} 67. Rc8+ {[%clk 0:00:08]}  Kb3 {[%clk 0:00:03]} 68. Rc5 {[%clk 0:00:07]}  Kxb2 {[%clk 0:00:02]} 69. d5 {[%clk 0:00:08]}  Rg7 {[%clk 0:00:03]} 70. d6 {[%clk 0:00:08]}  Kb3 {[%clk 0:00:03]} 71. Rc7 {[%clk 0:00:07]}  Rg8 {[%clk 0:00:02]} 72. d7 {[%clk 0:00:08]}  Rd8 {[%clk 0:00:01]} 73. Kxg4 {[%clk 0:00:08]}  b4 {[%clk 0:00:02]} 74. cxb4 {[%clk 0:00:08]}  Kxb4 {[%clk 0:00:03]} 75. Kf5 {[%clk 0:00:08]}  Kb5 {[%clk 0:00:04]} 76. Ke6 {[%clk 0:00:09]}  Kb6 {[%clk 0:00:05]} 77. Rc8 {[%clk 0:00:09]}  Rxd7 {[%clk 0:00:02]} 78. Kxd7 {[%clk 0:00:10]}  Kb7 {[%clk 0:00:03]} 79. Rc6 {[%clk 0:00:10]}  Ka7 {[%clk 0:00:03]} 80. Kc8 {[%clk 0:00:10]}  Ka8 {[%clk 0:00:03]} 81. Ra6# {[%clk 0:00:11]} 1-0


[Site "https://www.chess.com"]

[Event "Titled Tuesday Blitz February 14 Late 2023"]
[White "Martinez Reyes, Pedro Ramon"]
[Black "Kielinkei"]
[WhiteFideId "3901807"]
[WhiteElo "2376"]
[BlackElo "2399"]
[Result "0-1"]
[Round "07"]
[TimeControl "180+2"]
[Date "2023.02.14"]
[WhiteClock "0:00:01"]
[BlackClock "0:00:15"]

1. c4 {[%clk 0:03:00]}  Nf6 {[%clk 0:02:58]} 2. Nc3 {[%clk 0:03:01]}  e6 {[%clk 0:02:58]} 3. d4 {[%clk 0:03:01]}  Bb4 {[%clk 0:02:56]} 4. Bd2 {[%clk 0:02:58]}  d5 {[%clk 0:02:47]} 5. e3 {[%clk 0:02:56]}  O-O {[%clk 0:02:44]} 6. Nf3 {[%clk 0:02:56]}  b6 {[%clk 0:02:36]} 7. cxd5 {[%clk 0:02:55]}  exd5 {[%clk 0:02:34]} 8. Bd3 {[%clk 0:02:54]}  Be7 {[%clk 0:02:25]} 9. O-O {[%clk 0:02:53]}  h6 {[%clk 0:02:25]} 10. Ne5 {[%clk 0:02:52]}  Bb7 {[%clk 0:02:19]} 11. f4 {[%clk 0:02:38]}  c5 {[%clk 0:02:17]} 12. Qf3 {[%clk 0:02:37]}  Nc6 {[%clk 0:02:09]} 13. Rae1 {[%clk 0:02:17]}  cxd4 {[%clk 0:02:07]} 14. Nxc6 {[%clk 0:02:17]}  Bxc6 {[%clk 0:02:08]} 15. exd4 {[%clk 0:02:18]}  Ne4 {[%clk 0:02:03]} 16. Bc1 {[%clk 0:01:23]}  Bf6 {[%clk 0:01:56]} 17. Kh1 {[%clk 0:01:22]}  Bxd4 {[%clk 0:01:50]} 18. Nxe4 {[%clk 0:01:21]}  dxe4 {[%clk 0:01:49]} 19. Bxe4 {[%clk 0:01:21]}  Bxe4 {[%clk 0:01:49]} 20. Qxe4 {[%clk 0:01:13]}  Re8 {[%clk 0:01:45]} 21. Qb7 {[%clk 0:01:13]}  Bf6 {[%clk 0:01:34]} 22. h3 {[%clk 0:00:47]}  Qd3 {[%clk 0:01:14]} 23. Rd1 {[%clk 0:00:32]}  Qb5 {[%clk 0:01:02]} 24. Qd5 {[%clk 0:00:28]}  Qxd5 {[%clk 0:00:58]} 25. Rxd5 {[%clk 0:00:29]}  Re2 {[%clk 0:00:58]} 26. g4 {[%clk 0:00:24]}  Bxb2 {[%clk 0:00:55]} 27. f5 {[%clk 0:00:18]}  Rc8 {[%clk 0:00:52]} 28. Bf4 {[%clk 0:00:15]}  Bf6 {[%clk 0:00:42]} 29. Rd7 {[%clk 0:00:14]}  Rxa2 {[%clk 0:00:41]} 30. Rfd1 {[%clk 0:00:04]}  Ra1 {[%clk 0:00:20]} 31. Kg2 {[%clk 0:00:04]}  Rxd1 {[%clk 0:00:20]} 32. Rxd1 {[%clk 0:00:05]}  a5 {[%clk 0:00:18]} 33. Rb1 {[%clk 0:00:04]}  Rc6 {[%clk 0:00:18]} 34. Kg3 {[%clk 0:00:03]}  a4 {[%clk 0:00:18]} 35. h4 {[%clk 0:00:03]}  a3 {[%clk 0:00:17]} 36. g5 {[%clk 0:00:03]}  a2 {[%clk 0:00:17]} 37. Rd1 {[%clk 0:00:01]}  a1=Q {[%clk 0:00:15]} 0-1


[Site "https://www.chess.com"]

[Event "Titled Tuesday Blitz February 14 Late 2023"]
[White "Hoffmann, Asa"]
[Black "Chor, Kevin"]
[WhiteFideId "2001470"]
[BlackFideId "2090740"]
[WhiteElo "2185"]
[BlackElo "1944"]
[Result "1-0"]
[Round "07"]
[TimeControl "180+2"]
[Date "2023.02.14"]
[WhiteClock "0:00:58"]
[BlackClock "0:00:39"]

1. d4 {[%clk 0:02:58]}  Nf6 {[%clk 0:03:00]} 2. Bg5 {[%clk 0:02:54]}  Ne4 {[%clk 0:02:59]} 3. Bf4 {[%clk 0:02:53]}  c5 {[%clk 0:02:59]} 4. f3 {[%clk 0:02:53]}  Qa5+ {[%clk 0:02:59]} 5. c3 {[%clk 0:02:53]}  Nf6 {[%clk 0:02:59]} 6. d5 {[%clk 0:02:52]}  g6 {[%clk 0:02:54]} 7. e4 {[%clk 0:02:52]}  Bg7 {[%clk 0:02:54]} 8. Qd2 {[%clk 0:02:52]}  d6 {[%clk 0:02:45]} 9. Na3 {[%clk 0:02:51]}  Nbd7 {[%clk 0:02:40]} 10. Nc4 {[%clk 0:02:50]}  Qc7 {[%clk 0:02:39]} 11. a4 {[%clk 0:02:50]}  b6 {[%clk 0:02:39]} 12. Bd3 {[%clk 0:02:48]}  O-O {[%clk 0:02:31]} 13. Bh6 {[%clk 0:02:47]}  e6 {[%clk 0:02:27]} 14. Bxg7 {[%clk 0:02:40]}  Kxg7 {[%clk 0:02:28]} 15. dxe6 {[%clk 0:02:39]}  fxe6 {[%clk 0:02:29]} 16. Ne2 {[%clk 0:02:39]}  d5 {[%clk 0:02:26]} 17. Ne3 {[%clk 0:02:28]}  Ne5 {[%clk 0:02:17]} 18. Bc2 {[%clk 0:02:23]}  Rd8 {[%clk 0:02:12]} 19. exd5 {[%clk 0:02:18]}  exd5 {[%clk 0:02:06]} 20. O-O {[%clk 0:02:14]}  d4 {[%clk 0:01:53]} 21. cxd4 {[%clk 0:02:14]}  cxd4 {[%clk 0:01:54]} 22. Nxd4 {[%clk 0:02:09]}  Qc5 {[%clk 0:01:53]} 23. Rfd1 {[%clk 0:01:56]}  Bh3 {[%clk 0:01:27]} 24. Rac1 {[%clk 0:01:47]}  Rac8 {[%clk 0:01:14]} 25. Kf2 {[%clk 0:01:18]}  Bd7 {[%clk 0:01:10]} 26. Bf5 {[%clk 0:01:13]}  Qe7 {[%clk 0:00:55]} 27. Bxd7 {[%clk 0:01:09]}  Rxc1 {[%clk 0:00:46]} 28. Ndf5+ {[%clk 0:01:05]}  gxf5 {[%clk 0:00:43]} 29. Nxf5+ {[%clk 0:01:05]}  Kf8 {[%clk 0:00:39]} 30. Qh6+ {[%clk 0:00:58]} 1-0


[Site "https://www.chess.com"]